Cogmind - Beta 15 @@@ ROGUE MODE // 2025.09.20 @ 15:17:01 Player: Zaros426 Result: Destroyed by as-82071 with Assembled Blade Performance ------------- Evolutions (0) 0 Regions Visited (2) 400 Robots Destroyed (30) 150 Value Destroyed (260) 260 Prototype IDs (0) 0 Alien Tech Used (0) 0 Bonus (0) 0 TOTAL SCORE: 810 Bonus ------- None Cogmind --------- Core Integrity 0/250 Matter 292/300 Energy 250/250 System Corruption 0% Temperature Cool (0) Movement Rolling (105) Ox1 Location -10/Mines Parts ------- > --- POWER (1) -------- Ion Engine > --- PROPULSION (2) --- Wheel Compact Wheel > --- UTILITY (2) ------ High-capacity Storage Unit Seismic Detector > --- WEAPON (2) ------- Light Cannon Light Cannon > --- INVENTORY (20) --- Light Treads Light Treads Light Treads Light Treads Light Treads Huge Storage Unit High-capacity Battery (250) High-capacity Matter Pod (200) Medium Armor Plating Medium Armor Plating Beam Cannon Light Cannon Light Cannon Light Cannon Light Cannon Light Cannon Light Cannon Light Cannon Grenade Launcher Hammer Peak State ------------ > --- POWER ------------ Light Ion Engine > --- PROPULSION ------- Wheel Compact Wheel > --- UTILITY ---------- High-capacity Storage Unit Seismic Detector > --- WEAPON ----------- Beam Cannon Light Cannon > --- INVENTORY -------- Light Treads Light Treads Light Treads Light Treads Light Treads Heat Sink Huge Storage Unit High-capacity Battery Signal Interpreter Medium Armor Plating Light Cannon Light Cannon Light Cannon Light Cannon Light Cannon Light Cannon Light Cannon Light Cannon Grenade Launcher Mining Laser [Rating: 9] Favorites ----------- Power Light Ion Engine Engine Light Ion Engine Propulsion Light Treads Treads Light Treads Wheel Compact Wheel Utility Seismic Detector Device Seismic Detector Storage High-capacity Storage Unit Weapon Light Cannon Energy Gun Medium Laser Energy Cannon Beam Cannon Ballistic Gun Light Assault Rifle Ballistic Cannon Light Cannon Impact Weapon Hammer Build | -11 -10 -10 ------- Run | Yrd Mat Min Slots Evolved . | . . . Power . | . . . Propulsion . | . . . Utility . | . . . Weapon . | . . . Parts Attached 17 | 5 11 1 Power 4 | . 3 1 Engine 4 | . 3 1 Core . | . . . Reactor . | . . . Propulsion 4 | 2 2 . Treads 2 | 2 . . Leg . | . . . Wheel 2 | . 2 . Hover . | . . . Flight . | . . . Utility 3 | 1 2 . Device 1 | 1 . . Storage 2 | . 2 . Processor . | . . . Hackware . | . . . Protection . | . . . Artifact . | . . . Weapon 6 | 2 4 . Energy Gun 1 | 1 . . Energy Cannon 1 | . 1 . Ballistic Gun 1 | 1 . . Ballistic Cannon 2 | . 2 . Launcher . | . . . Special Weapon . | . . . Impact Weapon 1 | . 1 . Slashing Weapon . | . . . Piercing Weapon . | . . . Special Melee Weapon . | . . . Unidentified Prototypes . | . . . Parts Lost . | . . . Power . | . . . Propulsion . | . . . Utility . | . . . Weapon . | . . . Highest Loss Streak . | . . . To Critical Strikes . | . . . Average Backups 14 | 2 14 20 Power . | . . . Propulsion 2 | . 2 5 Utility 2 | . 2 5 Weapon 8 | 1 8 10 Tool/Special . | . . . Unused Backups 20 | . 4 16 Power . | . . . Propulsion 3 | . . 3 Utility 7 | . 2 5 Weapon 10 | . 2 8 Tool/Special . | . . . Average Slot Usage (%) 95 | . 94 100 Engine 10 | . 10 14 Treads 10 | . 11 . Wheel 17 | . 16 28 Device 14 | . 14 14 Storage 13 | . 13 14 Energy Cannon 1 | . 2 . Ballistic Cannon 21 | . 21 24 Impact Weapon 3 | . 2 3 Peak Build Rating 9 | 5 9 9 Average Rating 7 | 3 7 9 On Entrance 4 | . 4 9 Naked Turns . | . . . Heaviest Build 52 | 4 50 52 Greatest Support 40 | 3 40 26 Greatest Overweight (x) 3 | 1 3 1 Average Overweight (x) . | . . 1 Largest Inventory Capacity 20 | 5 20 20 Average Capacity 18 | 5 19 20 Most Carried 20 | 4 20 20 Average Carried 14 | 2 14 20 Final Capacity 20 | 5 20 20 Final Carried 20 | 4 20 20 Class Distribution -------------------- 100% | Mutant Dominant Class ---------------- Mutant | -10/Materials Mutant | -10/Mines Resources | -11 -10 -10 ----------- Run | Yrd Mat Min Matter Collected 978 | 271 487 220 Remotely . | . . . Salvage Created 589 | 126 463 . Parts 43 | 14 29 . Haulers Intercepted 2 | . 2 . Recyclers Shooed 2 | . 2 . Parts Field Recycled . | . . . Retrieved Matter . | . . . Parts Self-Destructed . | . . . Prevented . | . . . Kills | -11 -10 -10 ------- Run | Yrd Mat Min Combat Hostiles Destroyed 13 | . 12 1 Cannons 13 | . 12 1 Classes Destroyed 10 | 2 7 1 Worker 2 | . 2 . Builder 1 | . 1 . Tunneler 4 | 4 . . Hauler 2 | . 2 . Recycler 4 | 1 3 . Mechanic 1 | . 1 . Operator 1 | . 1 . Watcher 3 | . 3 . Swarmer 12 | . 12 . Assembled 1 | . . 1 Best Kill Streak 7 | 4 7 1 Combat Bots Only 3 | . 3 1 Max Kills in Single Turn 2 | 1 2 1 Gunslinging . | . . . Exploded . | . . . Melee . | . . . Uniques/NPCs Destroyed . | . . . Combat | -11 -10 -10 -------- Run | Yrd Mat Min Hostile Shots Fired 69 | . 55 14 Missed 21 | . 19 2 Hits 48 | . 36 12 Melee 1 | . . 1 Projectile 47 | . 36 11 Damage Taken 603 | . 413 190 Core 261 | . 151 110 Absorbed by Shields . | . . . Core Remaining (%) 100 | 100 . . Volleys Fired 78 | 21 47 10 Largest 2 | 2 2 2 Hottest 70 | 70 70 60 Shots Fired 143 | 42 81 20 Gun 46 | 42 4 . Cannon 97 | . 77 20 Launcher . | . . . Special . | . . . Kinetic 108 | 21 67 20 Thermal 35 | 21 14 . Explosive . | . . . Electromagnetic . | . . . Robot Hit Streak 8 | 7 8 2 Robot Miss Streak 4 | 3 4 4 Penetration Max . | . . . Secondary Targets . | . . . Shots Hit Robots 82 | 25 49 8 Core Hits 32 | 7 22 3 Critical Kills 1 | . 1 . Critical Parts Destroyed . | . . . Critical Strikes 5 | 2 3 . Burn 2 | 2 . . Meltdown 1 | . 1 . Blast 2 | . 2 . Melee Attacks 14 | . 14 . Impact 14 | . 14 . Slashing . | . . . Piercing . | . . . Sneak Attacks 3 | . 3 . Combat Hostiles . | . . . Follow-up Attacks . | . . . Damage Inflicted 1450 | 274 1041 135 Guns 287 | 274 13 . Cannons 955 | . 820 135 Explosions . | . . . Melee 208 | . 208 . Ramming . | . . . Kinetic 870 | 74 661 135 Thermal 372 | 200 172 . Explosive . | . . . Electromagnetic . | . . . Impact 208 | . 208 . Slashing . | . . . Piercing . | . . . Highest Corruption . | . . . Average Corruption . | . . . Corruption Purged . | . . . Corruption Blocked . | . . . Overload Shots . | . . . Overflow Damage 41 | . 41 . Projectiles . | . . . Explosions . | . . . Melee 41 | . 41 . Knockbacks 13 | . 13 . Impact 1 | . 1 . Kinetic 11 | . 11 . Secondary 1 | . 1 . Self-Inflicted Damage . | . . . Shots . | . . . Rammed . | . . . Targets Rammed . | . . . Kicked . | . . . Crushed . | . . . Highest Temperature 60 | 45 60 . Average Temperature 24 | 22 28 . Received Heat Transfer . | . . . Siege Activations . | . . . Martial Activations . | . . . Shielding Activations . | . . . Robots Disrupted . | . . . Combat Hostiles . | . . . Robots Corrupted 2 | . 2 . Combat Hostiles . | . . . Parts Fried 1 | . 1 . Impact Corruptions 3 | . 3 . Robots Melted 1 | . 1 . Combat Hostiles . | . . . Parts Melted 4 | 2 2 . Heat Transferred 1110 | 740 370 . Parts Sabotaged . | . . . Parts Stolen . | . . . Parts Stripped . | . . . Power Chain Reactions . | . . . Alert | -11 -10 -10 ------- Run | Yrd Mat Min Maximum Alert Level . | . . . Low Security (%) 100 | 100 100 100 Level 1 . | . . . Level 2 . | . . . Level 3 . | . . . Level 4 . | . . . Level 5 . | . . . High Security . | . . . Max Security . | . . . Peak Influence 113 | 10 113 31 Initial 31 | . 3 31 Average 36 | 1 43 7 Influence Increases 429 | 25 404 . Destroy 0b10 Robot/C 240 | . 240 . Destroy 0b10 Robot/NC 90 | 25 65 . Destroy Leader 50 | . 50 . Successful Hack 13 | . 13 . Select Force Hacks 30 | . 30 . Destroy Structure 6 | . 6 . Influence Decreases 429 | 20 327 82 Entered New Map 53 | . 2 51 Time Decay 376 | 20 325 31 Squads Dispatched 1 | . 1 . Investigation 1 | . 1 . Extermination . | . . . Reinforcement . | . . . Assault . | . . . Garrison . | . . . Intercept . | . . . Searches Triggered . | . . . Construction Impeded . | . . . Haulers Reinforced . | . . . Active Scanning Responses . | . . . Cargo Convoy Interrupts . | . . . Stealth | -11 -10 -10 --------- Run | Yrd Mat Min Distress Signals . | . . . Communications Jammed . | . . . Distress Signals . | . . . Times Spotted 21 | . 19 2 Peak Tracking Total 3 | . 3 1 Tactical Retreats . | . . . Traps | -11 -10 -10 ------- Run | Yrd Mat Min Traps Triggered . | . . . Indirectly . | . . . Trap Hack Attempts . | . . . Triggered . | . . . Disarmed . | . . . Reprogrammed . | . . . Reused . | . . . Traps Extracted . | . . . Installed . | . . . Triggered . | . . . Machines | -11 -10 -10 ---------- Run | Yrd Mat Min Machines Disabled . | . . . Max in Single Turn . | . . . Machines Repaired . | . . . Machines Dismantled . | . . . Machines Sabotaged . | . . . Overloaded Fab Kills . | . . . Hacking | -11 -10 -10 --------- Run | Yrd Mat Min Machines Accessed 9 | . 9 . Terminals 8 | . 8 . Fabricators . | . . . Repair Stations . | . . . Recycling Units 1 | . 1 . Scanalyzers . | . . . Garrison Access . | . . . Total Hacks 26 | . 26 . Successful 13 | . 13 . Failed 12 | . 12 . Catastrophic 1 | . 1 . Database Lockouts 1 | . 1 . Manual 25 | . 25 . Terminals 25 | . 25 . Fabricators . | . . . Repair Stations . | . . . Recycling Units 1 | . 1 . Scanalyzers . | . . . Garrison Access . | . . . Terminal Hacks 5 | . 5 . Robot Analysis 2 | . 2 . Terminal Index 1 | . 1 . Locate Traps 2 | . 2 . Fabricator Hacks . | . . . Repair Station Hacks . | . . . Recycling Unit Hacks . | . . . Scanalyzer . | . . . Garrison Access Hacks . | . . . Unauthorized Hacks 8 | . 8 . Terminals 7 | . 7 . Botnet 2 | . 2 . Operators 1 | . 1 . Skim 4 | . 4 . Fabricators . | . . . Repair Stations . | . . . Recycling Units 1 | . 1 . Tunnel 1 | . 1 . Scanalyzers . | . . . Garrison Access . | . . . Data Cores Recovered 1 | . 1 . Used . | . . . Hacking Detections 8 | . 8 . Full Trace Events . | . . . Feedback Events . | . . . Feedback Blocked . | . . . Robot Schematics Acquired . | . . . Robots Built . | . . . Authchips . | . . . Time . | . . . Total Robot Build Rating . | . . . Part Schematics Acquired . | . . . Parts Built . | . . . Authchips . | . . . Time . | . . . Total Part Build Rating . | . . . Parts Repaired . | . . . Time . | . . . Parts Recycled . | . . . Recycled Matter . | . . . Retrieved Matter . | . . . Retrieved Components . | . . . Parts Scanalyzed . | . . . Part Schematics Acquired . | . . . Parts Damaged . | . . . Bothacking | -11 -10 -10 ------------ Run | Yrd Mat Min Used RIF Installer . | . . . Robots Hacked . | . . . Non-combat . | . . . Combat . | . . . Robot Hacks Applied . | . . . Relay Couplers Released . | . . . Fabnet Peak Effective % . | . . . Robots Rewired . | . . . Allies Hacked . | . . . Hacks Repelled . | . . . Allies | -11 -10 -10 -------- Run | Yrd Mat Min Total Allies . | . . . Largest Group . | . . . Highest-Rated Group . | . . . Highest-Rated Ally . | . . . Total Orders . | . . . Ally Attacks . | . . . Total Damage . | . . . Kills . | . . . Allies Corrupted . | . . . Allies Melted . | . . . Intel | -11 -10 -10 ------- Run | Yrd Mat Min Active Infowar (turns) 1327 | 8 1145 174 Seismic 1327 | 8 1145 174 Robot Analysis Total 2 | . 2 . Derelict Logs Recovered . | . . . Drone Launches . | . . . Drone Recoveries . | . . . Exploration | -11 -10 -10 ------------- Run | Yrd Mat Min Turns Passed 1414 | 95 1145 174 Spaces Moved 851 | 45 740 66 Core 135 | 45 90 . Treads 134 | . 134 . Legs . | . . . Wheels 582 | . 516 66 Hover . | . . . Flight . | . . . Fastest Speed 50 | 50 50 105 Average Speed 118 | 56 123 105 Slowest Speed 240 | 100 240 105 Overloaded Moves . | . . . Propulsion Burnouts . | . . . Robots Hopped . | . . . Potential Cave-ins . | . . . Cave-ins Triggered . | . . . Exploration Rate (%) 41 | 4 99 21 Regions Visited 2 Branch Regions 1 Pre-discovered Areas 1 | . 1 . Known Exits Taken . | . . . Unknown Exits Taken 2 | 1 1 . Scrap Searched . | . . . Spaces Dug 3 | . 3 . Terrain Destroyed 4 | . 3 1 Melee 3 | . 3 . Projectile 1 | . . 1 AOE . | . . . Terrain Rammed . | . . . Walls Destroyed . | . . . Machines Disabled . | . . . Actions | -11 -10 -10 --------- Run | Yrd Mat Min Total 1088 | 74 863 151 Wait 88 | . 16 72 Move 849 | 44 739 66 Hop . | . . . Pick Up 25 | 3 22 . Fast Attach 8 | 5 3 . Attach 2 | . 2 . Detach 2 | 1 1 . Swap 12 | . 10 2 Drop 10 | . 9 1 Fire 78 | 21 47 10 Melee 14 | . 14 . Ram . | . . . Kick . | . . . Crush . | . . . Escape Stasis . | . . . Rewire . | . . . Trap . | . . . Miscellaneous . | . . . Route ------- -11/Scrapyard -10/Materials (discovered 5 exits: [*Mat x3] / [*Min x2]) -10/Mines (discovered 1 exit: [*Mat]) History --------- Turn | Location | Event 5 | -11/Scrapyard | Discovered new exit (range 15) 96 | -11/Scrapyard | Entered Materials 304 | -10/Materials | Build established: Mutant 315 | -10/Materials | Discovered new exit (range 5) 391 | -10/Materials | Discovered new exit (range 11) 733 | -10/Materials | Discovered new exit (range 10) 870 | -10/Materials | Discovered new exit (range 12) 879 | -10/Materials | Central database locked down 974 | -10/Materials | Core integrity fell below 50% 986 | -10/Materials | Discovered new exit (range 16) 1241 | -10/Materials | Entered Mines 1242 | -10/Mines | Assembled infested the area 1384 | -10/Mines | Core integrity fell below 20% 1406 | -10/Mines | Discovered new exit (range 8) 1415 | -10/Mines | Destroyed by as-82071 with Assembled Blade Last Messages --------------- 01139_ Acquired 25 matter. 01167_ Connecting with Recycling Unit... >>Force(Tunnel) DISCOVERED[-2/Research] 01167_ ALERT: Suspicious activity at Recycling Unit M002. Dispatching Investigation squad. 01167_ Flight Unit tumbles out of recycling unit. LOCATION=UNKNOWN GOAL=ESCAPE 01242_ ALERT: Infestation in the mines, dispatching Demolisher response squad. 01243_ Extracted 50 matter. 01244_ Extracted 78 matter. 01356_ Acquired 10 matter. 01362_ Dropped Lgt. Ion Engine. 01367_ Acquired 10 matter. 01373_ The unstable cave ceiling collapses. 01395_ as-01348 destroyed. 01400_ Acquired 6 matter. 01403_ Acquired 2 matter. 01406_ EXIT=FOUND 01408_ Acquired 62 matter. Map ----- +----------------------------------------------------+ | ??????????????????????????????????????? | | ??????????????????????????????????????? | | ??????????????????????????????????????? | | ??????????????????????????????????????? | | ??????????????????????????????????????? | | ??????????????????????????????????????? | | ??????????????????????????????????????? | | ??????????????????????????????????????? | | ??????????????????????????????????????? | | ??????????????????????????????????????? | | ?????????????#????????????????????????? | | ???????????? #???????????????????????? | | ???????????"" ???????????????????????? | | ??????????""" ???????????????????????? | | ??????????""" ???????????????????????? | | ??????????? = ???##??????????????????? | | ??????????? !%#??# ???????????????????? | | ???????????< =#?? ????????????????????? | | ???????????? # #?##?????????????????? | | ???????????? # ## #?????????????????? | | ???????????## # # ##????????????????? | | ???????????# # ##???????????????? | | ????????####! ##??????????????? | | ????????#!**%=% ##?????????????? | | ????????#%=